[Event "Deloitte NED-ch 2019"]
[Site "Amsterdam"]
[Date "2019.07.07"]
[Round "7.4"]
[White "Sokolov, Ivan"]
[Black "Bok, Benjamin"]
[Result "1-0"]
[ECO "E04"]
[WhiteElo "2584"]
[BlackElo "2645"]
[Annotator "RC"]
[PlyCount "65"]
[EventDate "2019.07.01"]
[EventType "tourn"]
[EventCountry "NED"]
[SourceTitle "playchess.com"]
[Source "ChessBase"]
[SourceQuality "1"]
[TimeControl "40/5400+30:1800+30"]

1. d4 {[%emt 0:12:20]} d5 {[%emt 0:00:00]} 2. c4 {[%emt 0:00:12]} e6 {[%emt 0:00:00]} 3. Nf3 {[%emt 0:00:03]} Nf6 {[%emt 0:00:00]} 4. Nc3 {[%emt 0:00:28]} c6 {[%emt 0:00:00]} 5. g3 {[%emt 0:00:23]} dxc4 {[%emt 0:00:00]} 6. Ne5 {[%emt 0:00:29]} b5 {[%emt 0:03:11]} 7. Bg2 {[%emt 0:00:17]} a6 {[%emt 0:00:12]} 8. O-O {[%emt 0:00:54]} Bb7 {[%emt 0:00:09]} 9. b3 {[%emt 0:00:39]} b4 {[%emt 0:01:10]} 10. Ne4 {[%emt 0:00:28]} Nxe4 {[%emt 0:00:14]} 11. Bxe4 {[%emt 0:00:07]} c3 {[%emt 0:00:12]} 12. a3 {[%emt 0:00:08]} a5 {[%emt 0:02:32]} 13. Qd3 {[%emt 0:00:12]} Be7 {[%emt 0:46:56]} 14. axb4 {[%emt 0:04:05]} Bxb4 {[%emt 0:05:29]} 15. Ba3 {[%emt 0:04:42]} Ba6 {[%emt 0:15:55]} 16. Qe3 {[%emt 0:05:05]} Qb6 {[%emt 0:09:36]} 17. Bxb4 {[%emt 0:07:16]} axb4 {[%emt 0:00:14]} 18. Nc4 {[%emt 0:01:03]} Bxc4 {[%emt 0:02:57]} 19. Rxa8 {[%emt 0:00:46]} Bd5 {[%emt 0:00:02]} 20. Bc2 {[%emt 0:02:14]} O-O {[%emt 0:01:14]} 21. Rfa1 {[%emt 0:00:01]} g6 {[%emt 0:09:15]} 22. Qf4 {[%emt 0:03:41]} c5 {[%emt 0:00:41]} 23. dxc5 {[%emt 0:00:14]} Qb5 {[%emt 0:00:37]} 24. Bd3 {[%emt 0:04:36]} Qe8 {[%emt 0:00:04]} 25. R8a7 {[%emt 0:00:32]} Nc6 {[%emt 0:00:27]} 26. Bb5 {[%emt 0:04:58]} Qd8 {[%emt 0:00:51]} 27. Bxc6 {[%emt 0:08:30]} Bxc6 {[%emt 0:00:01]} 28. Qxb4 {[%emt 0:00:05]} c2 {[%emt 0:01:22]} 29. Re1 {[%emt 0:00:03]} Qd1 {[%emt 0:00:37]} 30. Ra1 {[%emt 0:00:05]} Rd8 {[%emt 0:00:30]} 31. Qc3 {[%emt 0:01:25]} Rd2 {[%emt 0:00:30]} 32. f3 {[%emt 0:00:31]} Bxf3 {[%emt 0:00:31]} 33. exf3 {[%emt 0:00:42]} 1-0

[Event "Deloitte NED-ch 2019"]
[Site "Amsterdam"]
[Date "2019.07.07"]
[Round "7.7"]
[White "Werle, Jan"]
[Black "L'Ami, Erwin"]
[Result "1/2-1/2"]
[ECO "D73"]
[WhiteElo "2555"]
[BlackElo "2633"]
[Annotator "RC"]
[PlyCount "62"]
[EventDate "2019.07.01"]
[EventType "tourn"]
[EventCountry "NED"]
[SourceTitle "playchess.com"]
[Source "ChessBase"]
[SourceQuality "1"]
[TimeControl "40/5400+30:1800+30"]

1. Nf3 {[%emt 0:00:00]} d5 {[%emt 0:00:18]} 2. g3 {[%emt 0:00:00]} g6 {[%emt 0:00:52]} 3. c4 {[%emt 0:02:07]} c6 {[%emt 0:01:33]} 4. Bg2 {[%emt 0:01:27]} Bg7 {[%emt 0:00:15]} 5. d4 {[%emt 0:01:00]} Nf6 {[%emt 0:01:24]} 6. O-O {[%emt 0:00:39]} dxc4 {[%emt 0:00:30]} 7. Ne5 {[%emt 0:06:10]} Ng4 {[%emt 0:00:10]} 8. Nxg4 {[%emt 0:08:03]} Bxg4 {[%emt 0:00:11]} 9. h3 {[%emt 0:00:18]} Be6 {[%emt 0:03:12]} 10. e3 {[%emt 0:02:40]} Nd7 {[%emt 0:04:57]} 11. Qe2 {[%emt 0:14:47]} O-O {[%emt 0:00:50]} 12. Rd1 {[%emt 0:00:25]} f5 {[%emt 0:04:57]} 13. Nd2 {[%emt 0:09:00]} Nb6 {[%emt 0:01:16]} 14. b3 {[%emt 0:00:32]} cxb3 {[%emt 0:02:31]} 15. Nxb3 {[%emt 0:02:36]} Bd5 {[%emt 0:02:36]} 16. Rb1 {[%emt 0:03:44]} Bxg2 {[%emt 0:05:36]} 17. Kxg2 {[%emt 0:01:36]} Qd5+ {[%emt 0:00:25]} 18. Qf3 {[%emt 0:01:52]} Nc4 {[%emt 0:09:22]} 19. Nd2 {[%emt 0:05:24]} Nxd2 {[%emt 0:03:02]} 20. Rxd2 {[%emt 0:16:16]} b6 {[%emt 0:22:58]} 21. Ba3 {[%emt 0:03:41]} Kf7 {[%emt 0:09:10]} 22. Rc2 {[%emt 0:00:42]} Rfc8 {[%emt 0:06:55]} 23. Rbc1 {[%emt 0:03:57]} Qxf3+ {[%emt 0:01:18]} 24. Kxf3 {[%emt 0:00:03]} c5 {[%emt 0:00:12]} 25. dxc5 {[%emt 0:00:17]} b5 {[%emt 0:00:08]} 26. c6 {[%emt 0:04:18]} a5 {[%emt 0:00:44]} 27. Bb2 {[%emt 0:01:09]} Bxb2 {[%emt 0:01:22]} 28. Rxb2 {[%emt 0:00:03]} b4 {[%emt 0:00:14]} 29. a3 {[%emt 0:01:24]} Ra6 {[%emt 0:00:16]} 30. axb4 {[%emt 0:00:09]} axb4 {[%emt 0:00:03]} 31. Rxb4 {[%emt 0:00:18]} Raxc6 {[%emt 0:00:02] Ke4} 1/2-1/2